fUSD/lending_fUSD_20251118
["ID","MTS","AMOUNT","RATE_DAILY","PERIOD"]
[394320035,1763447441160,-501.95613346,0.00016973,2]
[394320036,1763447441169,-460.84951116,0.00016973,2]
[394320037,1763447441178,-504.13120605,0.00016973,2]
[394320038,1763447441188,-551.45375901,0.00016973,2]
[394320039,1763447441197,-30.90204986,0.00016973,2]
[394320040,1763447441208,-469.09795014,0.00016973,2]
[394320041,1763447441217,-475.10999696,0.00016973,2]
[394320042,1763447441228,-24.89000304,0.00016973,2]
[394320043,1763447441238,-500.0,0.00016973,2]
[394320044,1763447441248,-175.82770284,0.0001699,2]
[394320045,1763447441257,-143.67830057,0.00016999,2]
[394320046,1763447441363,521.4796751,0.00041685,120]
[394320047,1763447441733,503.63899898,0.00041685,120]
[394320048,1763447442010,473.38638607,0.00041685,120]
[394320049,1763447442488,500.0,0.00041685,120]
[394320065,1763447443112,-231.86487285,0.00016486,2]
[394320066,1763447443122,-206.5020279,0.000169,2]
[394320067,1763447443132,-151.0,0.000169,2]
[394320068,1763447443141,-356.32169943,0.00016999,2]
[394320069,1763447443151,-437.14212428,0.00016999,2]
[394320070,1763447443160,-172.85482825,0.00016999,2]
[394320071,1763447443234,500.0,0.00041685,120]
[394320072,1763447443265,150.5,0.0002602,120]
[394320078,1763447443561,503.89578059,0.00041685,120]
[394320090,1763447443694,455.00473775,0.00041685,120]
[394320091,1763447443728,150.5,0.0002601,120]
[394320093,1763447443804,150.285855,0.00041685,120]
[394320094,1763447444036,154.227162,0.00041685,120]
[394320095,1763447444108,512.22614373,0.00041685,120]
[394320096,1763447444172,150.285855,0.00041685,120]
[394320097,1763447444207,150.5,0.00026,120]
[394320098,1763447444272,182.620587,0.00041685,120]
[394320099,1763447444340,531.34739197,0.00041685,120]
[394320100,1763447444411,154.227162,0.00041685,120]
[394320101,1763447444473,150.285855,0.00041685,120]
[394320102,1763447444535,182.620587,0.00041685,120]
[394320103,1763447444811,182.620587,0.00041685,120]
[394320104,1763447444994,244.95055878,0.00041685,120]
[394320105,1763447445066,150.285855,0.00041685,120]
[394320106,1763447445149,182.620587,0.00041685,120]
[394320107,1763447445217,154.227162,0.00041685,120]
[394320108,1763447445283,504.95605275,0.00041685,120]
[394320109,1763447445350,150.285855,0.00041685,120]
[394320110,1763447445560,150.441553,0.00041685,120]
[394320111,1763447445638,157.97692,0.00041685,120]
[394320112,1763447445715,500.0,0.00041685,120]
[394320113,1763447445790,150.285855,0.00041685,120]
[394320114,1763447445863,154.227162,0.00041685,120]
[394320115,1763447445950,150.441553,0.00041685,120]
[394320116,1763447446023,157.97692,0.00041685,120]
[394320117,1763447446094,529.99736752,0.00041685,120]
[394320118,1763447446164,150.285855,0.00041685,120]
[394320119,1763447446236,150.441553,0.00041685,120]
[394320120,1763447446305,157.97692,0.00041685,120]
[394320121,1763447446389,-151.0,0.00016999,2]
[394320122,1763447446398,-327.14517175,0.00016999,2]
[394320123,1763447446408,-190.44121301,0.00016999,2]
[394320124,1763447446417,-166.54643279,0.00016999,2]
[394320125,1763447446426,-500.0,0.00016999,2]
[394320126,1763447446435,-500.0,0.00016999,2]
[394320127,1763447446444,-500.0,0.00016999,2]
[394320128,1763447446453,-500.0,0.00016999,2]
[394320129,1763447446462,-20242.91720591,0.00017,2]
[394320130,1763447446536,154.227162,0.00041685,120]
[394320136,1763447446612,150.441553,0.00041685,120]
[394320140,1763447446691,157.97692,0.00041685,120]
[394320143,1763447446949,154.227162,0.00041685,120]
[394320144,1763447447040,150.441553,0.00041685,120]
[394320145,1763447447119,157.97692,0.00041685,120]
[394320146,1763447447190,154.227162,0.00041685,120]
[394320147,1763447447325,150.441553,0.00041685,120]
[394320148,1763447447392,157.97692,0.00041685,120]
[394320149,1763447447513,154.227162,0.00041685,120]
[394320150,1763447447588,150.285855,0.00041685,120]
[394320151,1763447447654,500.0,0.00041685,120]
[394320152,1763447447728,150.441553,0.00041685,120]
[394320153,1763447447803,596.80757526,0.00041685,120]
[394320154,1763447447880,154.227162,0.00041685,120]
[394320155,1763447447965,520.58871304,0.00041685,120]
[394320156,1763447448042,157.97692,0.00041685,120]
[394320157,1763447448312,150.441553,0.00041685,120]
[394320158,1763447448382,154.227162,0.00041685,120]
[394320159,1763447448449,150.441553,0.00041685,120]
[394320160,1763447448521,154.227162,0.00041685,120]
[394320161,1763447448635,500.0,0.00041685,120]
[394320162,1763447448719,150.441553,0.00041685,120]
[394320163,1763447448790,157.97692,0.00041685,120]
[394320164,1763447448897,210.05468957,0.00041685,120]
[394320165,1763447449037,154.227162,0.00041685,120]
[394320166,1763447449104,157.97692,0.00041685,120]
[394320167,1763447449252,150.441553,0.00041685,120]
[394320168,1763447449362,154.227162,0.00041685,120]
[394320169,1763447449422,485.93643308,0.00041685,120]
[394320170,1763447449482,157.97692,0.00041685,120]
[394320171,1763447449596,150.441553,0.00041685,120]
[394320172,1763447449684,268.52539408,0.00041685,120]
[394320173,1763447449765,154.227162,0.00041685,120]
[394320174,1763447449831,157.97692,0.00041685,120]
[394320175,1763447449897,150.441553,0.00041685,120]
[394320176,1763447450105,500.0,0.00041685,120]
[394320177,1763447450184,157.97692,0.00041685,120]
[394320178,1763447450247,154.227162,0.00041685,120]
[394320179,1763447450318,150.441553,0.00041685,120]
[394320180,1763447450557,157.97692,0.00041685,120]
[394320181,1763447450631,154.227162,0.00041685,120]
[394320182,1763447450705,150.441553,0.00041685,120]
[394320183,1763447450790,560.21683709,0.00041685,120]
[394320184,1763447450905,157.97692,0.00041685,120]
[394320185,1763447451007,150.441553,0.00041685,120]
[394320186,1763447451074,154.227162,0.00041685,120]
[394320187,1763447451137,518.2386337,0.00041685,120]
[394320188,1763447451201,500.0,0.00041685,120]
[394320189,1763447451266,157.97692,0.00041685,120]
[394320190,1763447451421,150.441553,0.00041685,120]
[394320191,1763447451492,154.227162,0.00041685,120]
[394320192,1763447451797,150.441553,0.00041685,120]
[394320193,1763447451878,154.227162,0.00041685,120]
[394320194,1763447452650,502.66051744,0.00041685,120]
[394320195,1763447452722,150.441553,0.00041685,120]
[394320196,1763447452797,154.227162,0.00041685,120]
[394320197,1763447452874,500.0,0.00041685,120]
[394320198,1763447452952,406.7932545,0.00041685,120]
[394320199,1763447453043,486.21014652,0.00041685,120]
[394320200,1763447453122,504.46104067,0.00041685,120]
[394320201,1763447453192,150.441553,0.00041685,120]
[394320202,1763447453262,154.227162,0.00041685,120]
[394320203,1763447453441,150.441553,0.00041685,120]
[394320204,1763447453790,150.441553,0.00041685,120]
[394320205,1763447454108,150.441553,0.00041685,120]
[394320206,1763447454454,150.441553,0.00041685,120]
[394320207,1763447454614,504.36911533,0.00041685,120]
[394320208,1763447454681,494.4303347,0.00041685,120]
[394320209,1763447454763,500.0,0.00041685,120]
[394320210,1763447454838,512.49242385,0.00041685,120]
[394320211,1763447454929,150.441553,0.00041685,120]
[394320212,1763447455007,395.95,0.00041685,120]
[394320213,1763447455294,150.441553,0.00041685,120]
[394320214,1763447455659,150.441553,0.00041685,120]
[394320215,1763447455911,300.0,0.000165,6]
[394320216,1763447455989,150.441553,0.00041685,120]
[394320217,1763447456327,150.441553,0.00041685,120]
[394320218,1763447456409,549.05442124,0.00041685,120]
[394320219,1763447456631,500.0,0.00041685,120]
[394320220,1763447456702,508.95354757,0.00041685,120]
[394320221,1763447456866,437.76845512,0.00041685,120]
[394320222,1763447457044,150.441553,0.00041685,120]
[394320223,1763447457386,150.441553,0.00041685,120]
[394320224,1763447457557,500.0,0.00041685,120]
[394320225,1763447457683,150.441553,0.00041685,120]
[394320226,1763447457795,198.07307831,0.00041685,120]
[394320227,1763447458002,500.0,0.00041685,120]
[394320228,1763447458075,150.441553,0.00041685,120]
[394320229,1763447458155,500.0,0.00041685,120]
[394320230,1763447458233,264.11673823,0.00041685,120]
[394320231,1763447458344,150.441553,0.00041685,120]
[394320232,1763447458550,500.0,0.00041685,120]
[394320233,1763447458673,150.441553,0.00041685,120]
[394320234,1763447458792,523.10346561,0.00041685,120]
[394320235,1763447458890,194.74118278,0.00041685,120]
[394320236,1763447459018,150.441553,0.00041685,120]
[394320237,1763447459351,150.441553,0.00041685,120]
[394320238,1763447459662,150.441553,0.00041685,120]
[394320239,1763447459829,507.44340283,0.00041685,120]
[394320240,1763447459911,500.0,0.00041685,120]
[394320241,1763447459982,546.03113115,0.00041685,120]
[394320242,1763447460050,500.0,0.00041685,120]
[394320243,1763447460136,464.28160433,0.00041685,120]
[394320244,1763447460218,211.7468021,0.00041685,120]
[394320245,1763447461093,620.27129475,0.00041685,120]
[394320246,1763447461782,500.0,0.00041685,120]
[394320247,1763447461897,500.0,0.00041685,120]
[394320248,1763447462139,393.15466056,0.00041685,120]
[394320249,1763447462355,255.49,0.00041685,120]
[394320250,1763447463070,503.54611809,0.00041685,120]
[394320251,1763447463800,500.0,0.00041685,120]
[394320252,1763447464826,506.51009648,0.00041685,120]
[394320253,1763447465004,532.7210965,0.00041685,120]
[394320254,1763447465078,500.0,0.00041685,120]
[394320255,1763447465287,500.0,0.00041685,120]
[394320256,1763447465536,404.18,0.00041685,120]
[394320257,1763447465622,151.0,0.00041685,120]
[394320258,1763447465704,200.0,0.00041685,30]
[394320259,1763447465801,500.0,0.00041685,120]
[394320260,1763447465888,151.0,0.00041685,120]
[394320261,1763447465973,220.0,0.00041685,120]
[394320262,1763447466156,156.587,0.00041685,120]
[394320263,1763447466226,500.0,0.00041685,120]
[394320264,1763447466295,207.4,0.00041685,30]
[394320265,1763447466386,500.0,0.00041685,120]
[394320266,1763447466454,151.0,0.00041685,120]
[394320267,1763447466521,220.0,0.00041685,120]
[394320268,1763447466795,419.03865876,0.00041685,120]
[394320269,1763447466881,162.380719,0.00041685,120]
[394320270,1763447466968,500.0,0.00041685,120]
[394320271,1763447467156,215.0738,0.00041685,30]
[394320272,1763447467223,151.0,0.00041685,120]
[394320273,1763447467290,500.0,0.00041685,120]
[394320274,1763447467362,220.0,0.00041685,120]
[394320275,1763447467437,168.3888056,0.00041685,120]
[394320276,1763447467505,500.0,0.00041685,120]
[394320277,1763447467567,547.83,0.00041685,120]
[394320278,1763447467634,223.0315306,0.00041685,30]
[394320279,1763447467703,151.0,0.00041685,120]
[394320280,1763447467779,500.0,0.00041685,120]
[394320281,1763447467863,220.0,0.00041685,120]
[394320282,1763447468022,174.61919141,0.00041685,120]
[394320283,1763447468096,500.0,0.00041685,120]
[394320284,1763447468174,231.28369723,0.00041685,30]
[394320285,1763447468254,500.0,0.00041685,120]
[394320286,1763447468320,151.0,0.00041685,120]
[394320287,1763447468390,504.46227272,0.00041685,120]
[394320288,1763447468466,500.0,0.00041685,120]
[394320289,1763447468550,220.0,0.00041685,120]
[394320290,1763447468636,151.0,0.00041685,120]
[394320291,1763447468722,181.08010149,0.00041685,120]
[394320292,1763447468794,239.84119403,0.00041685,30]
[394320293,1763447468867,500.0,0.00041685,120]
[394320294,1763447468943,500.0,0.00041685,120]
[394320295,1763447469014,151.0,0.00041685,120]
[394320296,1763447469078,1713.50920716,0.00041685,120]
[394320297,1763447469394,151.0,0.00041685,120]
[394320298,1763447469457,248.71531821,0.00041685,30]
[394320299,1763447469520,181.08010149,0.00041685,120]
[394320300,1763447469591,500.0,0.00041685,120]
[394320301,1763447469654,151.0,0.00041685,120]
[394320302,1763447469738,500.0,0.00041685,120]
[394320303,1763447469811,250.0,0.00041685,120]
[394320304,1763447469887,151.0,0.00041685,120]
[394320305,1763447469958,257.91778498,0.00041685,30]
[394320306,1763447470030,500.0,0.00041685,120]
[394320307,1763447470094,746.26,0.00041685,120]
[394320308,1763447470159,500.0,0.00041685,120]
[394320309,1763447470235,151.0,0.00041685,120]
[394320310,1763447470308,525.02086992,0.00041685,120]
[394320311,1763447470375,746.26,0.00041685,120]
[394320312,1763447470446,250.0,0.00041685,120]
[394320313,1763447470539,746.26,0.00041685,120]
[394320314,1763447470608,267.46074303,0.00041685,30]
[394320315,1763447470677,151.0,0.00041685,120]
[394320316,1763447470758,500.0,0.00041685,120]
[394320317,1763447470834,151.0,0.00041685,120]
[394320318,1763447470906,500.0,0.00041685,120]
[394320319,1763447470989,746.26,0.00041685,120]
[394320320,1763447471057,250.0,0.00041685,120]
[394320321,1763447471135,746.26,0.00041685,120]
[394320322,1763447471204,277.35679052,0.00041685,30]
[394320323,1763447471271,151.0,0.00041685,120]
[394320324,1763447471340,500.0,0.00041685,120]
[394320325,1763447471408,500.0,0.00041685,120]
[394320326,1763447471483,746.26,0.00041685,120]
[394320327,1763447471556,151.0,0.00041685,120]
[394320328,1763447471633,500.0,0.00041685,120]
[394320329,1763447471727,746.26,0.00041685,120]
[394320330,1763447471805,500.0,0.00041685,120]
[394320331,1763447471898,250.0,0.00041685,120]
[394320332,1763447471982,300.0,0.00041685,120]
[394320333,1763447472058,287.61899177,0.00041685,30]
[394320334,1763447472128,151.0,0.00041685,120]
[394320335,1763447472198,500.0,0.00041685,120]
[394320336,1763447472267,746.26,0.00041685,120]
[394320337,1763447472359,500.0,0.00041685,120]
[394320338,1763447472435,746.26,0.00041685,120]
[394320339,1763447472529,746.26,0.00041685,120]
[394320340,1763447472615,250.0,0.00041685,120]
[394320341,1763447472690,311.1,0.00041685,120]
[394320342,1763447472767,500.0,0.00041685,120]
[394320343,1763447472837,298.26089446,0.00041685,30]
[394320344,1763447472906,151.0,0.00041685,120]
[394320345,1763447472982,520.0,0.00041685,120]
[394320346,1763447473060,746.26,0.00041685,120]
[394320347,1763447473138,500.0,0.00041685,120]
[394320348,1763447473222,746.26,0.00041685,120]
[394320349,1763447473297,250.0,0.00041685,120]
[394320350,1763447473367,322.6107,0.00041685,120]
[394320351,1763447473439,500.0,0.00041685,120]
[394320352,1763447473507,309.29654756,0.00041685,30]
[394320353,1763447473591,746.26,0.00041685,120]
[394320354,1763447473664,151.0,0.00041685,120]
[394320355,1763447473739,539.24,0.00041685,120]
[394320356,1763447473830,500.0,0.00041685,120]
[394320357,1763447473909,500.0,0.00041685,120]
[394320358,1763447473987,746.26,0.00041685,120]
[394320359,1763447474063,746.26,0.00041685,120]
[394320360,1763447474137,250.0,0.00041685,120]
[394320361,1763447474214,513.7967809,0.00041685,120]
[394320362,1763447474289,334.5472959,0.00041685,120]
[394320363,1763447474369,320.74051982,0.00041685,30]
[394320364,1763447474443,500.0,0.00041685,120]
[394320365,1763447474517,151.0,0.00041685,120]
[394320366,1763447474593,746.26,0.00041685,120]
[394320367,1763447474667,559.19188,0.00041685,120]
[394320368,1763447474751,500.0,0.00041685,120]
[394320369,1763447474834,746.26,0.00041685,120]
[394320370,1763447474932,250.0,0.00041685,120]
[394320371,1763447475014,746.26,0.00041685,120]
[394320372,1763447475083,346.92554585,0.00041685,120]
[394320373,1763447475152,332.60791905,0.00041685,30]
[394320374,1763447475218,151.0,0.00041685,120]
[394320375,1763447475287,500.0,0.00041685,120]
[394320376,1763447475349,531.69206691,0.00041685,120]
[394320377,1763447475565,579.88197956,0.00041685,120]
[394320378,1763447475652,500.0,0.00041685,120]
[394320379,1763447475731,746.26,0.00041685,120]
[394320380,1763447475812,746.26,0.00041685,120]
[394320381,1763447475888,250.0,0.00041685,120]
[394320382,1763447475964,359.76179104,0.00041685,120]
[394320383,1763447476049,344.91441206,0.00041685,30]
[394320384,1763447476125,746.26,0.00041685,120]
[394320385,1763447476196,500.0,0.00041685,120]
[394320386,1763447476266,500.0,0.00041685,120]
[394320387,1763447476342,746.26,0.00041685,120]
[394320388,1763447476425,500.0,0.00041685,120]
[394320389,1763447476499,250.0,0.00041685,120]
[394320390,1763447476573,373.07297731,0.00041685,120]
[394320391,1763447476646,746.26,0.00041685,120]
[394320392,1763447476724,357.6762453,0.00041685,30]
[394320393,1763447476808,500.0,0.00041685,120]
[394320394,1763447476891,746.34,0.00041685,120]
[394320395,1763447476967,601.3376128,0.00041685,120]
[394320396,1763447477040,250.0,0.00041685,120]
[394320397,1763447477117,373.07297731,0.00041685,120]
[394320398,1763447477293,500.0,0.00041685,120]
[394320399,1763447477361,370.91026638,0.00041685,30]
[394320400,1763447477441,500.0,0.00041685,120]
[394320401,1763447477515,500.0,0.00041685,120]
[394320402,1763447477595,623.58710448,0.00041685,120]
[394320403,1763447477664,500.0,0.00041685,120]
[394320404,1763447477738,250.0,0.00041685,120]
[394320405,1763447477813,384.63394623,0.00041685,30]
[394320406,1763447477882,500.0,0.00041685,120]
[394320407,1763447477954,500.0,0.00041685,120]
[394320408,1763447478031,500.0,0.00041685,120]
[394320409,1763447478102,276.8,0.00041685,120]
[394320410,1763447478177,250.0,0.00041685,120]
[394320411,1763447478244,646.65982734,0.00041685,120]
[394320412,1763447478308,500.0,0.00041685,120]
[394320413,1763447478373,384.63394623,0.00041685,30]
[394320414,1763447478436,151.0,0.00041685,120]
[394320415,1763447478505,500.0,0.00041685,120]
[394320416,1763447478571,500.0,0.00041685,120]
[394320417,1763447478636,511.1952702,0.00041685,120]
[394320418,1763447478708,409.83392154,0.00041685,120]
[394320419,1763447478783,670.58624095,0.00041685,120]
[394320420,1763447478857,250.0,0.00041685,120]
[394320421,1763447478924,500.0,0.00041685,120]
[394320422,1763447479009,151.0,0.00041685,120]
[394320423,1763447479077,500.0,0.00041685,120]
[394320424,1763447479156,695.39793187,0.00041685,120]
[394320425,1763447479223,250.0,0.00041685,120]
[394320426,1763447479287,500.0,0.00041685,120]
[394320427,1763447479348,500.0,0.00041685,120]
[394320428,1763447479409,151.0,0.00041685,120]
[394320429,1763447479482,500.0,0.00041685,120]
[394320430,1763447479602,250.0,0.00041685,120]
[394320431,1763447479687,151.0,0.00041685,120]
[394320432,1763447479777,250.0,0.00041685,120]
[394320433,1763447479870,721.12765535,0.00041685,120]
[394320434,1763447479952,500.0,0.00041685,120]
[394320435,1763447480031,550.33997444,0.00041685,120]
[394320436,1763447480103,250.0,0.00041685,120]
[394320437,1763447480173,151.0,0.00041685,120]
[394320438,1763447480244,747.8093786,0.00041685,120]
[394320439,1763447480309,500.0,0.00041685,120]
[394320440,1763447480374,250.0,0.00041685,120]
[394320441,1763447480451,250.0,0.00041685,120]
[394320442,1763447480521,151.0,0.00041685,120]
[394320443,1763447480588,250.0,0.00041685,120]
[394320444,1763447480656,775.47832561,0.00041685,120]
[394320445,1763447480736,250.0,0.00041685,120]
[394320446,1763447480820,500.0,0.00041685,120]
[394320447,1763447480907,517.27155265,0.00041685,120]
[394320448,1763447480982,250.0,0.00041685,120]
[394320449,1763447481050,151.0,0.00041685,120]
[394320450,1763447481125,804.17102365,0.00041685,120]
[394320451,1763447481192,250.0,0.00041685,120]
[394320452,1763447481257,250.0,0.00041685,120]
[394320453,1763447481749,250.0,0.00041685,120]
[394320454,1763447481822,500.0,0.00041685,120]
[394320455,1763447481907,833.92535153,0.00041685,120]
[394320456,1763447481982,250.0,0.00041685,120]
[394320457,1763447482050,500.0,0.00041685,120]
[394320458,1763447482177,250.0,0.00041685,120]
[394320459,1763447482254,512.44197494,0.00041685,120]
[394320460,1763447482317,500.0,0.00041685,120]
[394320461,1763447482444,250.0,0.00041685,120]
[394320462,1763447482519,864.78058953,0.00041685,120]
[394320463,1763447482588,500.0,0.00041685,120]
[394320464,1763447482791,571.82,0.00041685,120]
[394320465,1763447482860,250.0,0.00041685,120]
[394320466,1763447482928,500.0,0.00041685,120]
[394320467,1763447483041,500.0,0.00041685,120]
[394320468,1763447483116,250.0,0.00041685,120]
[394320469,1763447483185,896.77747135,0.00041685,120]
[394320470,1763447483252,500.0,0.00041685,120]
[394320471,1763447483452,500.0,0.00041685,120]
[394320472,1763447483527,250.0,0.00041685,120]
[394320473,1763447483691,250.0,0.00041685,120]
[394320474,1763447483780,500.0,0.00041685,120]
[394320475,1763447484082,250.0,0.00041685,120]
[394320476,1763447484155,500.0,0.00041685,120]
[394320477,1763447484229,250.0,0.00041685,120]
[394320478,1763447484295,500.0,0.00041685,120]
[394320479,1763447484363,250.0,0.00041685,120]
[394320480,1763447484433,250.0,0.00041685,120]
[394320481,1763447484733,250.0,0.00041685,120]
[394320482,1763447484812,250.0,0.00041685,120]
[394320483,1763447484897,500.0,0.00041685,120]
[394320484,1763447484980,151.0,0.00041685,120]
[394320485,1763447485056,250.0,0.00041685,120]
[394320486,1763447485130,250.0,0.00041685,120]
[394320487,1763447485332,500.0,0.00041685,120]
[394320488,1763447485402,250.0,0.00041685,120]
[394320489,1763447485466,250.0,0.00041685,120]
[394320490,1763447485540,250.0,0.00041685,120]
[394320491,1763447485609,151.0,0.00041685,120]
[394320492,1763447485682,250.0,0.00041685,120]
[394320493,1763447485769,500.0,0.00041685,120]
[394320494,1763447485942,500.0,0.00041685,120]
[394320495,1763447486016,500.0,0.00041685,120]
[394320496,1763447486094,250.0,0.00041685,120]
[394320497,1763447486169,250.0,0.00041685,120]
[394320498,1763447486240,516.87130613,0.00041685,120]
[394320499,1763447486307,250.0,0.00041685,120]
[394320500,1763447486376,151.0,0.00041685,120]
[394320501,1763447486446,302.64191354,0.00041685,120]
[394320502,1763447486510,519.88,0.00041685,120]
[394320503,1763447486575,250.0,0.00041685,120]
[394320504,1763447486650,414.0,0.00041685,120]
[394320505,1763447486744,500.0,0.00041685,30]
[394320506,1763447486816,500.0,0.00041685,120]
[394320507,1763447486887,250.0,0.00041685,120]
[394320508,1763447486957,250.0,0.00041685,120]
[394320509,1763447487023,151.0,0.00041685,120]
[394320510,1763447487089,429.318,0.00041685,120]
[394320511,1763447487168,500.0,0.00041685,120]
[394320512,1763447487242,500.0,0.00041685,120]
[394320513,1763447487440,544.94,0.00041685,120]
[394320514,1763447487518,500.0,0.00041685,120]
[394320515,1763447487591,532.11112323,0.00041685,120]
[394320516,1763447487662,250.0,0.00041685,120]
[394320517,1763447487732,250.0,0.00041685,120]
[394320518,1763447487806,151.0,0.00041685,120]
[394320519,1763447487891,500.0,0.00041685,120]
[394320520,1763447487966,445.202766,0.00041685,120]
[394320521,1763447488071,500.0,0.00041685,120]
[394320522,1763447488162,250.0,0.00041685,120]
[394320523,1763447488251,151.0,0.00041685,120]
[394320524,1763447488583,461.67526834,0.00041685,120]
[394320525,1763447488660,500.0,0.00041685,120]
[394320526,1763447488737,500.0,0.00041685,120]
[394320527,1763447488807,250.0,0.00041685,120]
[394320528,1763447488885,151.0,0.00041685,120]
[394320529,1763447488980,500.0,0.00041685,120]
[394320530,1763447489055,478.75725327,0.00041685,120]
[394320531,1763447489128,500.0,0.00041685,120]
[394320532,1763447489218,250.0,0.00041685,120]
[394320533,1763447489292,151.0,0.00041685,120]
[394320534,1763447489399,500.0,0.00041685,120]
[394320535,1763447489474,496.47127164,0.00041685,120]
[394320536,1763447489544,500.0,0.00041685,120]
[394320537,1763447489674,500.0,0.00041685,120]
[394320538,1763447489864,151.0,0.00041685,120]
[394320539,1763447489942,250.0,0.00041685,120]
[394320540,1763447490047,500.0,0.00041685,120]
[394320541,1763447490116,514.84070869,0.00041685,120]
[394320542,1763447490351,500.0,0.00041685,120]
[394320543,1763447490480,151.0,0.00041685,120]
[394320544,1763447490550,250.0,0.00041685,120]
[394320545,1763447490650,500.0,0.00041685,120]
[394320546,1763447490738,533.88981491,0.00041685,120]
[394320547,1763447490819,500.0,0.00041685,120]
[394320548,1763447490960,500.0,0.00041685,120]
[394320549,1763447491110,157.0,0.00041685,120]
[394320550,1763447491190,250.0,0.00041685,120]
[394320551,1763447491270,500.0,0.00041685,120]
[394320552,1763447491340,500.0,0.00041685,120]
[394320553,1763447491409,553.64373807,0.00041685,120]
[394320554,1763447491543,349.5,0.00041685,120]
[394320555,1763447491610,500.0,0.00041685,120]
[394320556,1763447491680,151.0,0.00041685,120]
[394320557,1763447491774,250.0,0.00041685,120]
[394320558,1763447491861,500.0,0.00041685,120]
[394320559,1763447491965,574.12855637,0.00041685,120]
[394320560,1763447492245,151.0,0.00041685,120]
[394320561,1763447492500,500.0,0.00041685,120]
[394320562,1763447492581,250.0,0.00041685,120]
[394320563,1763447492671,595.37131296,0.00041685,120]
[394320564,1763447492759,500.0,0.00041685,120]
[394320565,1763447492868,151.0,0.00041685,120]
[394320566,1763447492950,409.08,0.00041685,120]
[394320567,1763447493111,250.0,0.00041685,120]
[394320568,1763447493189,500.0,0.00041685,120]
[394320569,1763447493283,617.40005154,0.00041685,120]
[394320570,1763447493362,151.0,0.00041685,120]
[394320571,1763447493484,151.0,0.00041685,120]
[394320572,1763447493779,250.0,0.00041685,120]
[394320573,1763447493860,500.0,0.00041685,120]
[394320574,1763447493952,640.24385345,0.00041685,120]
[394320575,1763447494011,151.0,0.00041685,120]
[394320576,1763447494071,151.0,0.00041685,120]